bitfinex/quotes_SOLUSD_20240616
["timestamp","ask_amount","ask_price","bid_price","bid_amount"]
[1718503515240,15.3678,144.46,144.38,5.79]
[1718503515570,5.62,144.44,144.38,5.79]
[1718503517454,5.62,144.43,144.38,5.79]
[1718503518271,5.62,144.43,144.38,0.17]
[1718503518476,5.62,144.43,144.38,20.17]
[1718503521377,2.5614,144.45,144.38,20.17]
[1718503521556,5.62,144.43,144.38,20.17]
[1718503521967,7.684,144.46,144.38,20.17]
[1718503522180,5.62,144.43,144.38,20.17]
[1718503524756,2.5613,144.46,144.38,20.17]
[1718503525087,23.0506,144.47,144.39,21.7891]
[1718503525088,5.62,144.44,144.39,21.7891]
[1718503525281,2.561,144.48,144.39,21.7891]
[1718503525487,5.62,144.45,144.4,5.62]
[1718503526570,5.62,144.45,144.39,21.7891]
[1718503526778,5.62,144.45,144.4,5.62]
[1718503528249,2.561,144.47,144.4,5.62]
[1718503528458,5.62,144.45,144.4,5.62]
[1718503529185,23.44851329,144.51,144.41,5.62]
[1718503529391,5.62,144.48,144.42,5.62]
[1718503529768,7.6827,144.48,144.4,0.34]
[1718503530078,5.62,144.47,144.41,5.79]
[1718503531689,5.62,144.46,144.41,0.17]
[1718503532157,7.6828,144.48,144.41,5.79]
[1718503532357,5.62,144.46,144.41,5.79]
[1718503533591,7.6824,144.49,144.41,5.79]
[1718503533891,5.62,144.47,144.41,5.79]
[1718503534271,5.62,144.48,144.41,0.34]
[1718503534466,5.62,144.48,144.42,5.62]
[1718503534960,5.62,144.48,144.43,5.62]
[1718503535173,5.62,144.5,144.44,5.62]
[1718503537092,5.62,144.5,144.43,6.4181]
[1718503537418,5.62,144.5,144.44,20.0]
[1718503538193,2.5605,144.51,144.44,20.0]
[1718503538401,5.62,144.5,144.44,20.0]
[1718503538586,25.6008,144.53,144.45,0.17]
[1718503538797,5.62,144.52,144.46,20.8963]
[1718503539313,5.62,144.52,144.47,5.62]
[1718503539684,8.1802,144.52,144.47,5.62]
[1718503539883,5.62,144.51,144.46,20.8963]
[1718503542196,5.62,144.51,144.46,15.2763]
[1718503544402,5.62,144.48,144.44,20.0]
[1718503546283,5.62,144.49,144.44,25.62]
[1718503546800,5.62,144.5,144.44,25.62]
[1718503550808,5.62,144.52,144.46,5.62]
[1718503551003,5.62,144.52,144.47,5.62]
[1718503551420,25.5975,144.55,144.47,5.62]
[1718503551638,5.62,144.53,144.47,5.62]
[1718503554636,23.0372,144.55,144.47,5.62]
[1718503554813,5.62,144.53,144.47,5.62]
[1718503561033,5.62,144.52,144.47,5.62]
[1718503561236,5.62,144.52,144.46,5.62]
[1718503561461,2.56,144.53,144.47,20.0]
[1718503561629,5.62,144.51,144.47,20.0]
[1718503561952,5.62,144.52,144.47,20.0]
[1718503565247,5.62,144.52,144.46,25.62]
[1718503567243,5.62,144.52,144.46,20.0]
[1718503567545,5.62,144.47,144.43,6.4181]
[1718503567746,5.62,144.46,144.43,6.4181]
[1718503568454,5.62,144.45,144.42,16.5884]
[1718503568837,0.17,144.49,144.42,16.5884]
[1718503569021,5.62,144.46,144.42,16.5884]
[1718503569352,8.1914,144.51,144.42,16.5884]
[1718503569353,5.62,144.47,144.42,22.2084]
[1718503569546,5.62,144.48,144.42,22.2084]
[1718503569753,18.089,144.54,144.43,11.7096]
[1718503569922,5.62,144.5,144.45,5.62]
[1718503571951,5.62,144.5,144.44,25.62]
[1718503573141,5.62,144.49,144.44,25.62]
[1718503575553,2.7297,144.55,144.45,0.51]
[1718503575757,5.62,144.52,144.46,5.62]
[1718503576161,2.5598,144.54,144.46,5.62]
[1718503576335,5.62,144.52,144.47,16.3326]
[1718503578263,5.62,144.53,144.47,21.9526]
[1718503578940,5.62,144.53,144.47,16.3326]
[1718503579136,5.62,144.52,144.47,21.9526]
[1718503579657,5.62,144.52,144.47,16.3326]
[1718503580963,12.8005,144.53,144.47,16.3326]
[1718503581155,5.62,144.5,144.47,16.3326]
[1718503581865,7.6806,144.52,144.44,20.0]
[1718503581866,5.62,144.49,144.44,36.3326]
[1718503584677,5.62,144.47,144.44,16.3326]
[1718503584972,5.1218,144.48,144.4,21.9526]
[1718503584973,5.62,144.45,144.4,21.9526]
[1718503585342,5.62,144.45,144.4,16.3326]
[1718503585572,5.62,144.45,144.4,21.9526]
[1718503586237,5.62,144.45,144.41,20.0]
[1718503588443,5.62,144.46,144.41,25.62]
[1718503588845,5.62,144.47,144.41,25.62]
[1718503589044,54.07518671,144.52,144.42,5.79]
[1718503589363,5.62,144.49,144.43,5.62]
[1718503589755,5.62,144.48,144.43,5.62]
[1718503590051,5.62,144.48,144.42,5.79]
[1718503593274,5.62,144.48,144.41,20.17]
[1718503593570,15.3633,144.5,144.42,5.62]
[1718503593571,5.62,144.47,144.42,5.62]
[1718503593772,5.62,144.47,144.41,25.62]
[1718503594155,5.62,144.47,144.42,5.62]
[1718503596552,5.62,144.47,144.41,25.62]
[1718503597665,5.62,144.47,144.42,5.62]
[1718503598953,5.62,144.47,144.41,25.62]
[1718503602982,5.62,144.47,144.42,5.62]
[1718503603788,5.62,144.48,144.43,5.62]
[1718503603962,5.62,144.48,144.42,5.62]
[1718503604361,28.926,144.52,144.43,25.62]
[1718503604566,5.62,144.49,144.43,5.62]
[1718503604777,5.62,144.5,144.44,5.62]
[1718503607985,46.8474,144.52,144.44,5.62]
[1718503608295,5.62,144.49,144.44,5.62]
[1718503609071,5.62,144.49,144.43,5.62]
[1718503609388,7.681,144.51,144.44,5.62]
[1718503609561,5.62,144.49,144.44,5.62]
[1718503610064,5.62,144.49,144.43,5.62]
[1718503612608,5.62,144.49,144.42,0.51]
[1718503612777,5.62,144.47,144.41,20.0]
[1718503612977,5.62,144.47,144.42,5.62]
[1718503613195,5.62,144.47,144.43,20.0]
[1718503613377,5.62,144.47,144.41,25.62]
[1718503617805,5.62,144.47,144.41,20.0]
[1718503618101,15.3636,144.5,144.41,25.62]
[1718503618311,5.62,144.47,144.41,25.62]
[1718503619227,5.62,144.47,144.41,20.0]
[1718503619518,2.5607,144.49,144.41,20.0]
[1718503619519,5.62,144.45,144.41,20.0]
[1718503621286,7.8519,144.5,144.41,20.0]
[1718503621522,5.62,144.46,144.41,20.0]
[1718503622310,5.62,144.45,144.41,20.0]
[1718503622906,5.62,144.43,144.37,5.64107223]
[1718503623084,5.62,144.43,144.37,5.62]
[1718503623284,2.5613,144.46,144.37,5.62]
[1718503623285,5.62,144.42,144.37,5.62]
[1718503623503,5.62,144.42,144.36,15.1187]
[1718503623504,5.62,144.42,144.36,20.7387]
[1718503623709,5.62,144.4,144.36,15.1187]
[1718503623890,5.62,144.39,144.35,6.2168]
[1718503624208,10.5862,144.45,144.35,6.2168]
[1718503624209,5.62,144.4,144.35,6.2168]
[1718503624409,5.62,144.4,144.35,11.8368]
[1718503624610,2.9015,144.45,144.35,11.8368]
[1718503624783,5.62,144.4,144.35,11.8368]
[1718503625113,5.62,144.41,144.36,25.62]
[1718503628523,5.62,144.4,144.36,20.0]
[1718503629535,5.62,144.41,144.36,20.0]
[1718503634535,5.62,144.4,144.36,20.0]
[1718503634706,5.62,144.4,144.35,6.2168]
[1718503635306,5.62,144.39,144.35,6.2168]
[1718503635605,5.62,144.38,144.34,0.2686224]
[1718503635805,5.62,144.38,144.34,20.2686224]
[1718503637944,5.62,144.37,144.34,0.2686224]
[1718503638111,5.62,144.35,144.34,0.2686224]
[1718503639623,5.62,144.36,144.34,0.2686224]
[1718503641511,5.62,144.37,144.34,0.2686224]
[1718503643317,5.48599377,144.44,144.34,0.2686224]
[1718503643318,5.1234,144.44,144.34,0.2686224]
[1718503643517,7.6848,144.44,144.35,5.62]
[1718503643840,5.62,144.4,144.35,5.62]
[1718503644073,5.62,144.39,144.34,22.0659224]
[1718503644341,5.62,144.39,144.35,20.0]
[1718503644640,2.5621,144.41,144.34,0.2686224]
[1718503644641,5.62,144.37,144.34,0.2686224]
[1718503645024,5.62,144.38,144.34,0.2686224]
[1718503646639,17.705,144.42,144.34,5.8886224]
[1718503646942,5.62,144.4,144.34,5.8886224]
[1718503647368,22.829,144.42,144.34,5.8886224]
[1718503647670,5.62,144.4,144.34,5.8886224]
[1718503648531,5.62,144.4,144.34,0.2686224]
[1718503648865,5.62,144.4,144.35,5.62]
[1718503649038,5.62,144.39,144.34,5.8886224]
[1718503649552,5.62,144.39,144.34,0.2686224]
[1718503649859,5.62,144.39,144.34,25.8886224]
[1718503650633,5.62,144.38,144.34,20.2686224]
[1718503651037,5.62,144.38,144.34,0.2686224]
[1718503651967,5.62,144.37,144.34,0.2686224]
[1718503652559,2.5625,144.39,144.34,0.2686224]
[1718503652946,25.6232,144.4,144.34,0.2686224]
[1718503653249,17.9362,144.4,144.34,0.2686224]
[1718503653454,25.6233,144.4,144.34,0.2686224]
[1718503654353,7.6871,144.4,144.34,0.2686224]
[1718503654554,2.5626,144.39,144.34,0.2686224]
[1718503654858,5.62,144.36,144.34,0.2686224]
[1718503655667,5.62,144.37,144.34,0.2686224]
[1718503657872,5.62,144.38,144.34,0.2686224]
[1718503659646,0.17,144.41,144.34,0.2686224]
[1718503659856,5.62,144.39,144.34,5.8886224]
[1718503662366,5.12,144.39,144.34,0.2686224]
[1718503662667,5.62,144.38,144.34,0.2686224]
[1718503673876,5.12,144.38,144.34,0.2686224]
[1718503677295,40.7637,144.42,144.34,0.2686224]
[1718503677497,5.62,144.38,144.34,0.2686224]
[1718503680678,2.5625,144.39,144.34,0.2686224]
[1718503680889,5.62,144.37,144.34,0.2686224]
[1718503681289,0.17,144.41,144.34,0.2686224]
[1718503681509,5.62,144.38,144.34,0.2686224]
[1718503687636,5.62,144.39,144.34,0.2686224]
[1718503688127,8.1825,144.39,144.34,0.2686224]
[1718503688333,5.62,144.38,144.34,0.2686224]
[1718503691726,5.62,144.37,144.34,0.2686224]
[1718503692430,5.62,144.37,144.36,2.5629]
[1718503696923,5.62,144.37,144.34,0.2686224]
[1718503696924,10.7457,144.37,144.34,0.2686224]
[1718503697229,5.62,144.35,144.34,2.8318224]
[1718503697605,25.6291,144.37,144.35,2.5631]
[1718503697804,5.62,144.36,144.35,2.5631]
[1718503700632,8.183,144.36,144.34,0.2686224]
[1718503700803,8.183,144.36,144.35,2.5632]
[1718503700804,5.62,144.36,144.35,2.5632]
[1718503701208,8.183,144.36,144.35,2.5632]
[1718503701642,0.34,144.38,144.37,2.5628]
[1718503701817,13.648,144.38,144.36,2.5629]
[1718503702135,5.62,144.37,144.36,2.5629]
[1718503702323,5.62,144.37,144.34,0.2686224]
[1718503702641,8.1828,144.37,144.34,0.2686224]
[1718503703112,5.62,144.35,144.34,0.2686224]
[1718503703814,5.62,144.35,144.34,2.8318224]
[1718503713847,7.6887,144.37,144.35,2.5631]
[1718503714159,5.62,144.36,144.35,2.5631]
[1718503715060,8.183,144.36,144.35,2.5632]
[1718503715233,5.62,144.36,144.34,0.2686224]
[1718503715439,5.62,144.35,144.34,0.2686224]
[1718503715644,5.62,144.35,144.34,2.8319224]
[1718503722679,2.563,144.36,144.34,2.8319224]
[1718503722878,7.23342472,144.41,144.34,0.2686224]
[1718503723099,5.62,144.37,144.36,2.5628]
[1718503723488,5.62,144.37,144.35,2.563]
[1718503723871,5.62,144.36,144.35,2.563]
[1718503730687,5.62,144.36,144.34,0.2686224]
[1718503730688,2.5626,144.39,144.34,0.2686224]
[1718503730882,2.5626,144.39,144.37,2.5627]
[1718503731097,5.62,144.38,144.37,2.5627]
[1718503731711,7.6872,144.4,144.34,0.2686224]
[1718503731904,5.62,144.38,144.34,0.2686224]
[1718503739099,5.1244,144.41,144.34,0.2686224]
[1718503739417,5.1244,144.41,144.34,5.8886224]
[1718503739418,5.62,144.39,144.34,5.8886224]
[1718503740316,7.6875,144.39,144.34,0.2686224]
[1718503740613,5.62,144.38,144.34,0.2686224]
[1718503741887,5.62,144.37,144.34,0.2686224]
[1718503756836,22.37511792,144.42,144.34,5.8886224]
[1718503757012,5.62,144.4,144.34,5.8886224]
[1718503763556,8.1823,144.4,144.34,5.8886224]
[1718503763742,5.62,144.38,144.34,0.2686224]
[1718503764138,5.62,144.35,144.34,0.2686224]
[1718503765352,5.62,144.36,144.35,2.5632]
[1718503766055,2.5623,144.4,144.38,2.5625]
[1718503766230,5.62,144.39,144.38,2.5625]
[1718503766429,2.5621,144.41,144.34,5.8886224]
[1718503766630,5.62,144.39,144.34,5.8886224]
[1718503770648,2.5621,144.41,144.34,5.8886224]
[1718503770848,5.62,144.39,144.34,5.8886224]
[1718503773325,5.62,144.39,144.34,0.2686224]
[1718503773527,5.62,144.38,144.34,20.2686224]
[1718503774262,5.62,144.38,144.34,0.2686224]
[1718503776549,5.62,144.39,144.34,0.2686224]
[1718503776864,5.62,144.37,144.34,0.2686224]
[1718503777451,7.6878,144.39,144.34,0.2686224]
[1718503777771,5.62,144.36,144.34,0.2686224]
[1718503778342,0.17,144.4,144.34,0.2686224]
[1718503778545,2.9023,144.4,144.34,0.2686224]
[1718503778976,15.7139,144.4,144.34,0.2686224]
[1718503779287,8.027,144.4,144.34,0.2686224]
[1718503781882,2.9023,144.4,144.34,0.2686224]
[1718503783059,8.027,144.4,144.34,0.2686224]
[1718503784985,2.9023,144.4,144.34,0.2686224]
[1718503786597,0.34,144.4,144.34,0.2686224]
[1718503787986,2.9023,144.4,144.34,0.2686224]
[1718503788189,8.027,144.4,144.34,0.2686224]
[1718503789270,2.9023,144.4,144.34,0.2686224]
[1718503790604,8.027,144.4,144.34,0.2686224]
[1718503791605,2.9023,144.4,144.34,0.2686224]
[1718503793007,0.34,144.4,144.34,0.2686224]
[1718503793906,7.23159071,144.41,144.34,0.2686224]
[1718503794107,5.62,144.4,144.35,16.4661]
[1718503794895,5.62,144.39,144.35,16.4661]
[1718503798593,5.62,144.37,144.35,16.4661]
[1718503800412,5.62,144.38,144.35,16.4661]
[1718503802635,23.0563,144.43,144.35,16.4661]
[1718503802915,5.62,144.39,144.35,16.4661]
[1718503803304,2.7319,144.42,144.35,16.4661]
[1718503803623,5.62,144.39,144.35,16.4661]
[1718503805640,5.62,144.38,144.35,16.4661]
[1718503806146,23.0569,144.43,144.35,16.4661]
[1718503806315,14.914326,144.44,144.35,22.0861]
[1718503806515,2.5611,144.47,144.39,16.4661]
[1718503806727,5.62,144.45,144.39,22.0861]
[1718503807122,5.62,144.45,144.4,5.62]
[1718503807319,5.62,144.46,144.39,16.4661]
[1718503807514,5.62,144.45,144.4,25.62]
[1718503808340,5.62,144.45,144.4,20.0]
[1718503808920,5.62,144.42,144.4,20.0]
[1718503809312,7.6841,144.46,144.4,20.0]
[1718503809516,5.62,144.43,144.4,20.0]
[1718503809724,5.62,144.44,144.4,20.0]
[1718503810627,45.5287,144.48,144.4,20.0]
[1718503810628,5.62,144.45,144.4,20.0]
[1718503812523,48.0897,144.48,144.4,20.0]
[1718503812841,5.62,144.45,144.4,20.0]
[1718503813842,2.5608,144.49,144.41,5.62]
[1718503814027,269.04329053,144.51,144.44,16.1465]
[1718503814240,256.7,144.51,144.44,16.1465]
[1718503814418,5.62,144.49,144.44,21.7665]
[1718503819958,5.62,144.48,144.44,16.1465]
[1718503821180,5.62,144.47,144.44,16.1465]
[1718503823884,5.62,144.45,144.42,20.0]
[1718503824182,5.62,144.45,144.41,16.1465]
[1718503824883,5.62,144.47,144.41,21.7665]
[1718503825186,5.12,144.47,144.41,21.7665]
[1718503831421,5.62,144.46,144.41,21.7665]
[1718503839521,5.62,144.47,144.42,5.62]
[1718503841028,5.62,144.47,144.41,21.7665]
[1718503841225,5.62,144.47,144.41,16.1465]
[1718503841529,5.62,144.46,144.41,21.7665]
[1718503846629,5.62,144.47,144.41,21.7665]
[1718503853453,5.62,144.43,144.39,6.2164]
[1718503853615,5.62,144.42,144.39,6.2164]
[1718503854527,5.62,144.43,144.39,6.2164]
[1718503856440,2.5615,144.45,144.39,6.2164]
[1718503856642,5.62,144.43,144.39,6.2164]
[1718503859558,5.62,144.42,144.39,6.2164]
[1718503862845,5.62,144.42,144.38,15.631]
[1718503862846,5.62,144.4,144.35,6.451]
[1718503863059,5.62,144.39,144.35,6.451]
[1718503865455,7.22353034,144.44,144.36,5.62]
[1718503865767,5.62,144.41,144.36,5.62]
[1718503866174,5.62,144.41,144.35,12.071]
[1718503866556,5.62,144.4,144.35,12.071]
[1718503867864,5.62,144.4,144.35,6.451]
[1718503868379,5.62,144.4,144.35,12.071]
[1718503873462,5.62,144.4,144.35,6.451]
[1718503873671,5.62,144.39,144.35,6.451]
[1718503876504,7.22353034,144.44,144.35,6.451]
[1718503876505,14.90853034,144.44,144.35,6.451]
[1718503876709,5.62,144.41,144.35,12.071]
[1718503882585,7.6851,144.44,144.36,5.79]
[1718503882790,5.62,144.42,144.37,5.62]
[1718503883226,9.78378057,144.46,144.38,21.2035]
[1718503883409,5.62,144.44,144.39,5.62]
[1718503883901,5.62,144.44,144.38,21.2035]
[1718503889335,8.1816,144.44,144.38,21.2035]
[1718503889501,8.1816,144.44,144.38,15.5835]
[1718503889502,5.62,144.43,144.38,15.5835]
[1718503890212,5.62,144.42,144.38,15.5835]
[1718503892930,5.62,144.43,144.38,21.2035]
[1718503896723,5.62,144.42,144.38,15.5835]
[1718503902467,5.62,144.4,144.35,6.451]
[1718503902631,5.62,144.39,144.35,6.451]
[1718503902940,5.62,144.38,144.35,6.451]
[1718503903330,5.62,144.38,144.34,15.3979224]
[1718503904861,5.62,144.37,144.34,15.3979224]
[1718503907967,5.62,144.38,144.34,15.3979224]
[1718503910437,2.5621,144.41,144.34,15.3979224]
[1718503910643,5.62,144.38,144.34,15.3979224]
[1718503912497,2.5621,144.41,144.34,15.3979224]
[1718503912662,5.62,144.39,144.34,15.3979224]
[1718503917692,7.22458804,144.42,144.34,15.3979224]
[1718503917888,5.62,144.39,144.34,15.3979224]
[1718503922107,5.62,144.38,144.34,15.3979224]
[1718503930497,7.22458804,144.42,144.35,25.62]
[1718503930691,5.62,144.41,144.35,25.62]
[1718503932106,2.5617,144.43,144.35,25.62]
[1718503932107,5.62,144.4,144.35,25.62]
[1718503933095,7.6859,144.42,144.35,20.0]
[1718503933408,5.62,144.38,144.35,20.0]
[1718503933621,5.62,144.39,144.35,20.0]
[1718503934192,23.0569,144.43,144.35,20.0]
[1718503934193,25.6188,144.43,144.35,20.0]
[1718503934421,5.62,144.39,144.35,20.0]
[1718503936808,5.62,144.4,144.35,20.0]
[1718503938610,5.62,144.39,144.35,20.0]
[1718503946723,9.78420179,144.43,144.35,20.0]
[1718503946898,5.62,144.39,144.35,20.0]
[1718503950622,5.62,144.4,144.35,20.0]
[1718503952148,5.62,144.39,144.35,20.0]
[1718503957731,5.62,144.38,144.35,20.0]
[1718503960243,5.62,144.38,144.34,15.3979224]
[1718503960443,5.62,144.36,144.34,15.3979224]
[1718503964746,5.62,144.35,144.34,0.2686224]
[1718503972967,7.22282023,144.38,144.34,0.2686224]
[1718503973349,5.62,144.35,144.34,0.2686224]
[1718503977349,5.62,144.35,144.34,2.8319224]
[1718503982054,9.78562023,144.38,144.37,2.5628]
[1718503982055,7.22282023,144.38,144.37,2.5628]
[1718503982370,12.84282023,144.38,144.37,2.5628]
[1718503984052,15.40542023,144.38,144.37,2.5628]
[1718503985474,15.40542023,144.38,144.34,0.2686224]
[1718503985771,5.62,144.35,144.34,0.2686224]
[1718503993382,70.6935,144.41,144.34,0.2686224]
[1718503993587,5.62,144.37,144.34,0.2686224]
[1718503995186,7.6856,144.43,144.34,0.2686224]
[1718503995491,5.62,144.4,144.35,16.6063]
[1718503995674,5.62,144.39,144.35,16.6063]
[1718503995859,5.62,144.4,144.35,22.2263]
[1718503996056,15.3108,144.44,144.35,22.2263]
[1718503996265,5.62,144.41,144.36,25.62]
[1718503996566,5.62,144.41,144.36,20.0]
[1718503998887,5.62,144.42,144.37,11.6675]
[1718504002166,5.62,144.42,144.37,6.0475]
[1718504002798,2.5616,144.44,144.37,6.0475]
[1718504003091,5.62,144.42,144.37,6.0475]
[1718504003391,5.62,144.41,144.37,6.0475]
[1718504004075,7.6857,144.43,144.37,6.0475]
[1718504004273,5.62,144.4,144.36,20.0]
[1718504014269,5.62,144.37,144.35,16.6063]
[1718504015094,5.62,144.41,144.35,16.6063]
[1718504015283,5.62,144.38,144.35,16.6063]
[1718504016097,5.62,144.39,144.35,16.6063]
[1718504017410,5.62,144.38,144.35,16.6063]
[1718504022877,30.1665,144.41,144.35,16.6063]
[1718504023077,5.62,144.38,144.35,16.6063]
[1718504035718,5.62,144.39,144.35,16.6063]
[1718504038624,5.62,144.38,144.35,16.6063]
[1718504039130,5.62,144.37,144.35,16.6063]
[1718504040826,5.62,144.37,144.34,0.2686224]
[1718504045218,7.6871,144.4,144.34,0.2686224]
[1718504046718,2.5624,144.4,144.34,0.2686224]
[1718504050416,32.43616849,144.41,144.34,0.2686224]
[1718504051246,47.80966849,144.41,144.34,0.2686224]
[1718504051433,52.93396849,144.41,144.34,0.2686224]
[1718504051744,55.49616849,144.41,144.34,0.2686224]
[1718504052525,2.5623,144.4,144.34,0.2686224]
[1718504053026,55.49616849,144.41,144.34,0.2686224]
[1718504053346,2.5623,144.4,144.34,0.2686224]
[1718504055350,7.22396849,144.41,144.34,0.2686224]
[1718504055560,25.617,144.44,144.35,20.7182]
[1718504055730,5.62,144.41,144.35,20.7182]
[1718504055936,5.62,144.42,144.36,25.62]
[1718504057033,5.62,144.41,144.36,25.62]
[1718504060352,32.83926058,144.44,144.37,12.0076]
[1718504060552,5.62,144.43,144.37,12.0076]
[1718504061350,9.78446058,144.44,144.37,12.0076]
[1718504061554,5.62,144.44,144.39,5.62]
[1718504064777,25.6115,144.47,144.41,5.62]
[1718504065060,5.62,144.46,144.42,1.0810779]
[1718504065732,8.1812,144.46,144.42,1.0810779]
[1718504066162,8.1812,144.46,144.41,1.08107789]
[1718504067145,5.62,144.45,144.39,5.62]
[1718504067344,5.62,144.45,144.4,20.0]
[1718504067638,5.62,144.45,144.4,25.62]
[1718504069077,8.1813,144.46,144.4,25.62]
[1718504071560,5.62,144.46,144.4,25.62]
[1718504074064,2.5612,144.47,144.4,25.62]
[1718504074578,5.62,144.46,144.4,25.62]
[1718504074952,23.0469,144.49,144.4,25.62]
[1718504075153,5.62,144.47,144.42,15.6596]
[1718504079489,5.62,144.47,144.42,21.2796]
[1718504083910,5.62,144.46,144.42,15.6596]
[1718504084407,13.3038,144.46,144.42,15.6596]
[1718504084613,8.1813,144.46,144.42,15.6596]
[1718504084983,13.3042,144.45,144.42,15.6596]
[1718504085202,13.3042,144.45,144.38,15.6596]
[1718504085203,8.1816,144.44,144.38,15.6596]
[1718504085408,8.1816,144.44,144.39,20.0]
[1718504086008,5.62,144.44,144.39,20.0]
[1718504086817,5.62,144.42,144.38,15.6596]
[1718504095897,5.62,144.41,144.38,15.6596]
[1718504100312,7.22608797,144.44,144.38,15.6596]
[1718504100503,5.62,144.43,144.38,15.6596]
[1718504101012,7.22608797,144.44,144.38,15.6596]
[1718504101013,5.62,144.42,144.38,15.6596]
[1718504101318,7.22608797,144.44,144.38,15.6596]
[1718504101319,5.62,144.4,144.38,15.6596]
[1718504103203,5.62,144.41,144.38,15.6596]
[1718504103409,5.62,144.41,144.37,6.167]
[1718504104109,5.62,144.41,144.35,20.915]
[1718504104312,5.62,144.41,144.35,15.295]
[1718504104313,5.62,144.39,144.35,15.295]
[1718504105714,5.62,144.38,144.35,15.295]
[1718504106942,5.62,144.39,144.35,15.295]
[1718504112029,5.62,144.36,144.34,0.2686224]
[1718504112351,5.62,144.35,144.34,0.2686224]
[1718504116041,8.6932,144.35,144.34,0.2686224]
[1718504116255,37.552,144.35,144.34,0.2686224]
[1718504116650,57.552,144.35,144.34,0.2686224]
[1718504117452,0.17,144.32,144.25,16.5197]
[1718504117632,5.62,144.27,144.26,2.5648]
[1718504117966,25.8083,144.32,144.29,2.5642]
[1718504118150,0.17,144.33,144.25,16.5197]
[1718504118464,5.62,144.31,144.3,2.5641]
[1718504119240,13.3117,144.31,144.28,2.5643]
[1718504119447,2.5639,144.31,144.29,2.5642]
[1718504119654,5.62,144.3,144.29,2.5642]
[1718504120333,5.62,144.3,144.28,2.5643]
[1718504121279,5.62,144.3,144.25,16.5197]
[1718504121448,5.62,144.3,144.28,2.5642]
[1718504122669,5.62,144.3,144.29,2.5642]
[1718504123341,0.17,144.31,144.29,2.5642]
[1718504123651,5.62,144.3,144.29,2.5642]
[1718504129677,20.0,144.33,144.25,16.5197]
[1718504129879,23.068,144.36,144.33,2.5634]
[1718504130046,5.62,144.34,144.33,2.5634]
[1718504130247,32.84141658,144.36,144.33,2.5634]
[1718504130448,5.62,144.34,144.33,2.5634]
[1718504131503,5.62,144.34,144.33,2.5635]
[1718504132202,8.1833,144.34,144.32,2.5636]
[1718504132375,5.62,144.33,144.32,2.5636]
[1718504136100,8.1836,144.33,144.31,2.5637]
[1718504136296,5.62,144.33,144.31,2.5637]
[1718504136504,5.62,144.32,144.31,2.5637]
[1718504139298,8.1838,144.32,144.25,16.5197]
[1718504139502,5.62,144.28,144.27,2.5646]
[1718504140314,5.62,144.29,144.28,2.5644]